Workbook

Sheet 四半期売上報告書
A2: 四半期売上報告書 | J2: 表示する上位の製品数: | K2: 5 | L2: 製品
J4: すべての製品を表示: | K4: いいえ
B34: 製品 | C34: 第 1 四半期 | D34: 第 2 四半期 | E34: 第 3 四半期 | F34: 第 4 四半期 | G34: 合計
B35: フレーム | C35: 400000 | D35: 450000 | E35: 500000 | F35: 500000 | G35: =SUM(Sales[[#This Row],[第 1 四半期]:[第 4 四半期]]) -> 1850000
B36: ディスク ブレーキ (フロント) | C36: 29400 | D36: 24990 | E36: 32340 | F36: 36750 | G36: =SUM(Sales[[#This Row],[第 1 四半期]:[第 4 四半期]]) -> 123480
B37: キャリパー ブレーキ (フロント) | C37: 20000 | D37: 17000 | E37: 22000 | F37: 25000 | G37: =SUM(Sales[[#This Row],[第 1 四半期]:[第 4 四半期]]) -> 84000
B38: ディスク ブレーキ (リア) | C38: 40000 | D38: 34000 | E38: 44000 | F38: 50000 | G38: =SUM(Sales[[#This Row],[第 1 四半期]:[第 4 四半期]]) -> 168000
B39: キャリパー ブレーキ (リア) | C39: 29400 | D39: 24990 | E39: 32340 | F39: 36750 | G39: =SUM(Sales[[#This Row],[第 1 四半期]:[第 4 四半期]]) -> 123480
B40: サドル | C40: 23500 | D40: 19975 | E40: 3200 | F40: 29375 | G40: =SUM(Sales[[#This Row],[第 1 四半期]:[第 4 四半期]]) -> 76050
B41: フォーク | C41: 10000 | D41: 8500 | E41: 11000 | F41: 12500 | G41: =SUM(Sales[[#This Row],[第 1 四半期]:[第 4 四半期]]) -> 42000
B42: ブレーキ ワイヤー | C42: 30000 | D42: 25500 | E42: 33000 | F42: 37500 | G42: =SUM(Sales[[#This Row],[第 1 四半期]:[第 4 四半期]]) -> 126000
B43: シフト ワイヤー | C43: 25000 | D43: 21250 | E43: 27500 | F43: 31250 | G43: =SUM(Sales[[#This Row],[第 1 四半期]:[第 4 四半期]]) -> 105000
B44: リア スプロケット | C44: 40000 | D44: 34000 | E44: 44000 | F44: 50000 | G44: =SUM(Sales[[#This Row],[第 1 四半期]:[第 4 四半期]]) -> 168000
B45: フロント スプロケット | C45: 20000 | D45: 17000 | E45: 22000 | F45: 25000 | G45: =SUM(Sales[[#This Row],[第 1 四半期]:[第 4 四半期]]) -> 84000
B46: ハンドル バー | C46: 189500 | D46: 161075 | E46: 344500 | F46: 333300 | G46: =SUM(Sales[[#This Row],[第 1 四半期]:[第 4 四半期]]) -> 1028375
B47: ブレーキ レバー | C47: 54400 | D47: 46240 | E47: 59840 | F47: 68000 | G47: =SUM(Sales[[#This Row],[第 1 四半期]:[第 4 四半期]]) -> 228480
B48: シート ポスト | C48: 20000 | D48: 17000 | E48: 22000 | F48: 25000 | G48: =SUM(Sales[[#This Row],[第 1 四半期]:[第 4 四半期]]) -> 84000
B49: ハンドル バー クランプ | C49: 6000 | D49: 5100 | E49: 6600 | F49: 7500 | G49: =SUM(Sales[[#This Row],[第 1 四半期]:[第 4 四半期]]) -> 25200
B50: サドル バッグ | C50: 241300 | D50: 205105 | E50: 400000 | F50: 301625 | G50: =SUM(Sales[[#This Row],[第 1 四半期]:[第 4 四半期]]) -> 1148030
B51: スポーク | C51: 23300 | D51: 19805 | E51: 25630 | F51: 29125 | G51: =SUM(Sales[[#This Row],[第 1 四半期]:[第 4 四半期]]) -> 97860
B52: リム | C52: 35400 | D52: 30090 | E52: 38940 | F52: 44250 | G52: =SUM(Sales[[#This Row],[第 1 四半期]:[第 4 四半期]]) -> 148680
B53: タイヤ | C53: 42300 | D53: 35955 | E53: 46530 | F53: 52875 | G53: =SUM(Sales[[#This Row],[第 1 四半期]:[第 4 四半期]]) -> 177660
B54: ハンドル グリップ | C54: 222200 | D54: 188870 | E54: 244420 | F54: 277750 | G54: =SUM(Sales[[#This Row],[第 1 四半期]:[第 4 四半期]]) -> 933240
B55: グリップ テープ | C55: 155040 | D55: 131784 | E55: 170544 | F55: 193800 | G55: =SUM(Sales[[#This Row],[第 1 四半期]:[第 4 四半期]]) -> 651168
B56: パッド | C56: 3000 | D56: 2550 | E56: 3300 | F56: 3750 | G56: =SUM(Sales[[#This Row],[第 1 四半期]:[第 4 四半期]]) -> 12600
B57: チェーン | C57: 20800 | D57: 17680 | E57: 22880 | F57: 26000 | G57: =SUM(Sales[[#This Row],[第 1 四半期]:[第 4 四半期]]) -> 87360
B58: ディレイラー | C58: 35600 | D58: 30260 | E58: 39160 | F58: 44500 | G58: =SUM(Sales[[#This Row],[第 1 四半期]:[第 4 四半期]]) -> 149520
B59: クイック リリース ハブ | C59: 25800 | D59: 21930 | E59: 28380 | F59: 32250 | G59: =SUM(Sales[[#This Row],[第 1 四半期]:[第 4 四半期]]) -> 108360
B60: スタンダード ハブ | C60: 41400 | D60: 35190 | E60: 45540 | F60: 51750 | G60: =SUM(Sales[[#This Row],[第 1 四半期]:[第 4 四半期]]) -> 173880
B61: ペダル | C61: 36900 | D61: 31365 | E61: 40590 | F61: 46125 | G61: =SUM(Sales[[#This Row],[第 1 四半期]:[第 4 四半期]]) -> 154980
B62: チェーン ガード | C62: 32400 | D62: 27540 | E62: 35640 | F62: 40500 | G62: =SUM(Sales[[#This Row],[第 1 四半期]:[第 4 四半期]]) -> 136080
B63: ミラー | C63: 8700 | D63: 7395 | E63: 9570 | F63: 10875 | G63: =SUM(Sales[[#This Row],[第 1 四半期]:[第 4 四半期]]) -> 36540

Sheet 計算 (hidden)
A1: *** このシートは非表示にしておきます ****
E4: 製品 | F4: 第 1 四半期 | G4: 第 2 四半期 | H4: 第 3 四半期 | I4: 第 4 四半期 | J4: 合計
B5: 1 | C5: =IF($B5>n,"",LARGE(Sales[合計],1)) -> 1850000 | D5: =IF($B5>n,"",IF(C4=C5,MATCH(C5,OFFSET(Sales[合計],D4,),0)+D4,MATCH(C5,Sales[合計],0))) -> 1 | E5: =IF($B5>n,"",INDEX(Sales[製品],D5)) -> フレーム | F5: =IF($B5>n,"",INDEX(Sales[第 1 四半期],$D5)) -> 400000 | G5: =IF($B5>n,"",INDEX(Sales[第 2 四半期],$D5)) -> 450000 | H5: =IF($B5>n,"",INDEX(Sales[第 3 四半期],$D5)) -> 500000 | I5: =IF($B5>n,"",INDEX(Sales[第 4 四半期],$D5)) -> 500000 | J5: =IF($B5>n,"",SUM(F5:I5)) -> 1850000
B6: 2 | C6: =IF($B6>n,"",LARGE(Sales[合計],2)) -> 1148030 | D6: =IF($B6>n,"",IF(C5=C6,MATCH(C6,OFFSET(Sales[合計],D5,),0)+D5,MATCH(C6,Sales[合計],0))) -> 16 | E6: =IF($B6>n,"",INDEX(Sales[製品],D6)) -> サドル バッグ | F6: =IF($B6>n,"",INDEX(Sales[第 1 四半期],$D6)) -> 241300 | G6: =IF($B6>n,"",INDEX(Sales[第 2 四半期],$D6)) -> 205105 | H6: =IF($B6>n,"",INDEX(Sales[第 3 四半期],$D6)) -> 400000 | I6: =IF($B6>n,"",INDEX(Sales[第 4 四半期],$D6)) -> 301625 | J6: 1148030
B7: 3 | C7: =IF($B7>n,"",LARGE(Sales[合計],3)) -> 1028375 | D7: =IF($B7>n,"",IF(C6=C7,MATCH(C7,OFFSET(Sales[合計],D6,),0)+D6,MATCH(C7,Sales[合計],0))) -> 12 | E7: =IF($B7>n,"",INDEX(Sales[製品],D7)) -> ハンドル バー | F7: =IF($B7>n,"",INDEX(Sales[第 1 四半期],$D7)) -> 189500 | G7: =IF($B7>n,"",INDEX(Sales[第 2 四半期],$D7)) -> 161075 | H7: =IF($B7>n,"",INDEX(Sales[第 3 四半期],$D7)) -> 344500 | I7: =IF($B7>n,"",INDEX(Sales[第 4 四半期],$D7)) -> 333300 | J7: 1028375
B8: 4 | C8: =IF($B8>n,"",LARGE(Sales[合計],4)) -> 933240 | D8: =IF($B8>n,"",IF(C7=C8,MATCH(C8,OFFSET(Sales[合計],D7,),0)+D7,MATCH(C8,Sales[合計],0))) -> 20 | E8: =IF($B8>n,"",INDEX(Sales[製品],D8)) -> ハンドル グリップ | F8: =IF($B8>n,"",INDEX(Sales[第 1 四半期],$D8)) -> 222200 | G8: =IF($B8>n,"",INDEX(Sales[第 2 四半期],$D8)) -> 188870 | H8: =IF($B8>n,"",INDEX(Sales[第 3 四半期],$D8)) -> 244420 | I8: =IF($B8>n,"",INDEX(Sales[第 4 四半期],$D8)) -> 277750 | J8: 933240
B9: 5 | C9: =IF($B9>n,"",LARGE(Sales[合計],5)) -> 651168 | D9: =IF($B9>n,"",IF(C8=C9,MATCH(C9,OFFSET(Sales[合計],D8,),0)+D8,MATCH(C9,Sales[合計],0))) -> 21 | E9: =IF($B9>n,"",INDEX(Sales[製品],D9)) -> グリップ テープ | F9: =IF($B9>n,"",INDEX(Sales[第 1 四半期],$D9)) -> 155040 | G9: =IF($B9>n,"",INDEX(Sales[第 2 四半期],$D9)) -> 131784 | H9: =IF($B9>n,"",INDEX(Sales[第 3 四半期],$D9)) -> 170544 | I9: =IF($B9>n,"",INDEX(Sales[第 4 四半期],$D9)) -> 193800 | J9: 651168
B10: 6 | C10: =IF($B10>n,"",LARGE(Sales[合計],6)) ->  | D10: =IF($B10>n,"",IF(C9=C10,MATCH(C10,OFFSET(Sales[合計],D9,),0)+D9,MATCH(C10,Sales[合計],0))) ->  | E10: =IF($B10>n,"",INDEX(Sales[製品],D10)) ->  | F10: =IF($B10>n,"",INDEX(Sales[第 1 四半期],$D10)) ->  | G10: =IF($B10>n,"",INDEX(Sales[第 2 四半期],$D10)) ->  | H10: =IF($B10>n,"",INDEX(Sales[第 3 四半期],$D10)) ->  | I10: =IF($B10>n,"",INDEX(Sales[第 4 四半期],$D10)) -> 
B11: 7 | C11: =IF($B11>n,"",LARGE(Sales[合計],7)) ->  | D11: =IF($B11>n,"",IF(C10=C11,MATCH(C11,OFFSET(Sales[合計],D10,),0)+D10,MATCH(C11,Sales[合計],0))) ->  | E11: =IF($B11>n,"",INDEX(Sales[製品],D11)) ->  | F11: =IF($B11>n,"",INDEX(Sales[第 1 四半期],$D11)) ->  | G11: =IF($B11>n,"",INDEX(Sales[第 2 四半期],$D11)) ->  | H11: =IF($B11>n,"",INDEX(Sales[第 3 四半期],$D11)) ->  | I11: =IF($B11>n,"",INDEX(Sales[第 4 四半期],$D11)) -> 
B12: 8 | C12: =IF($B12>n,"",LARGE(Sales[合計],8)) ->  | D12: =IF($B12>n,"",IF(C11=C12,MATCH(C12,OFFSET(Sales[合計],D11,),0)+D11,MATCH(C12,Sales[合計],0))) ->  | E12: =IF($B12>n,"",INDEX(Sales[製品],D12)) ->  | F12: =IF($B12>n,"",INDEX(Sales[第 1 四半期],$D12)) ->  | G12: =IF($B12>n,"",INDEX(Sales[第 2 四半期],$D12)) ->  | H12: =IF($B12>n,"",INDEX(Sales[第 3 四半期],$D12)) ->  | I12: =IF($B12>n,"",INDEX(Sales[第 4 四半期],$D12)) -> 
B13: 9 | C13: =IF($B13>n,"",LARGE(Sales[合計],9)) ->  | D13: =IF($B13>n,"",IF(C12=C13,MATCH(C13,OFFSET(Sales[合計],D12,),0)+D12,MATCH(C13,Sales[合計],0))) ->  | E13: =IF($B13>n,"",INDEX(Sales[製品],D13)) ->  | F13: =IF($B13>n,"",INDEX(Sales[第 1 四半期],$D13)) ->  | G13: =IF($B13>n,"",INDEX(Sales[第 2 四半期],$D13)) ->  | H13: =IF($B13>n,"",INDEX(Sales[第 3 四半期],$D13)) ->  | I13: =IF($B13>n,"",INDEX(Sales[第 4 四半期],$D13)) -> 
B14: 10 | C14: =IF($B14>n,"",LARGE(Sales[合計],10)) ->  | D14: =IF($B14>n,"",IF(C13=C14,MATCH(C14,OFFSET(Sales[合計],D13,),0)+D13,MATCH(C14,Sales[合計],0))) ->  | E14: =IF($B14>n,"",INDEX(Sales[製品],D14)) ->  | F14: =IF($B14>n,"",INDEX(Sales[第 1 四半期],$D14)) ->  | G14: =IF($B14>n,"",INDEX(Sales[第 2 四半期],$D14)) ->  | H14: =IF($B14>n,"",INDEX(Sales[第 3 四半期],$D14)) ->  | I14: =IF($B14>n,"",INDEX(Sales[第 4 四半期],$D14)) -> 
E15: ="" -> 
B16: =IncludeOther="はい" -> FALSE | E16: その他 | F16: =SUM(Sales[第 1 四半期]) - SUM(F5:F14) -> 653300 | G16: =SUM(Sales[第 2 四半期]) - SUM(G5:G14) -> 555305 | H16: =SUM(Sales[第 3 四半期]) - SUM(H5:H14) -> 695980 | I16: =SUM(Sales[第 4 四半期]) - SUM(I5:I14) -> 816625 | J16: =SUM(Sales[合計]) - SUM(J5:J14) -> 2721210
E18: 合計 | F18: =SUM(Sales[第 1 四半期]) -> 1861340 | G18: =SUM(Sales[第 2 四半期]) -> 1692139 | H18: =SUM(Sales[第 3 四半期]) -> 2355444 | I18: =SUM(Sales[第 4 四半期]) -> 2423100 | J18: =SUM(Sales[合計]) -> 8332023
B22: ="総売上および上位 " & n & " 製品" -> 総売上および上位 5 製品
